[Event "Moscow Open RSSU Cup 2020"]
[Site "Moscow"]
[Date "2020.01.29"]
[Round "5.5"]
[White "Sychev, Klementy"]
[Black "Shuvalova, Polina"]
[Result "1-0"]
[ECO "C45"]
[WhiteElo "2563"]
[BlackElo "2445"]
[Annotator "ChessBase"]
[PlyCount "105"]
[EventDate "2020.01.25"]
[EventType "swiss"]
[EventCountry "RUS"]
[SourceTitle "playchess.com"]
[Source "ChessBase"]
[SourceQuality "1"]
[TimeControl "40/5400+30:1800+30"]

1. e4 {[%emt 0:02:17]} e5 {[%emt 0:00:00]} 2. Nf3 {[%emt 0:00:07]} Nc6 {[%emt 0:00:00]} 3. d4 {[%emt 0:00:36]} exd4 {[%emt 0:00:00]} 4. Nxd4 {[%emt 0:00:06]} Nf6 {[%emt 0:00:00]} 5. Nxc6 {[%emt 0:00:07]} bxc6 {[%emt 0:00:00]} 6. e5 {[%emt 0:03:19]} Qe7 {[%emt 0:00:00]} 7. Qe2 {[%emt 0:00:06]} Nd5 {[%emt 0:00:04]} 8. g3 {[%emt 0:00:12]} a5 {[%emt 0:05:01]} 9. c4 {[%emt 0:08:15]} Ba6 {[%emt 0:03:29]} 10. Bg2 {[%emt 0:16:08]} g6 {[%emt 0:06:38]} 11. b3 {[%emt 0:10:01]} Bg7 {[%emt 0:00:48]} 12. Bb2 {[%emt 0:01:11]} O-O {[%emt 0:02:23]} 13. O-O {[%emt 0:03:12]} a4 {[%emt 0:11:29]} 14. Re1 {[%emt 0:04:40]} Rfe8 {[%emt 0:04:34]} 15. Qd2 {[%emt 0:15:19]} Nb6 {[%emt 0:02:35]} 16. Na3 {[%emt 0:01:03]} axb3 {[%emt 0:08:04]} 17. axb3 {[%emt 0:00:07]} Bb7 {[%emt 0:01:27]} 18. Nc2 {[%emt 0:00:39]} Rxa1 {[%emt 0:02:54]} 19. Bxa1 {[%emt 0:03:23]} Qf8 {[%emt 0:08:41]} 20. Bc3 {[%emt 0:03:56]} d6 {[%emt 0:09:55]} 21. f4 {[%emt 0:05:35]} Ba8 {[%emt 0:04:15]} 22. h4 {[%emt 0:06:57]} h5 {[%emt 0:05:56]} 23. c5 {[%emt 0:04:36]} Nd5 {[%emt 0:03:02]} 24. Bxd5 {[%emt 0:01:00]} cxd5 {[%emt 0:00:04]} 25. exd6 {[%emt 0:02:08]} cxd6 {[%emt 0:07:12]} 26. Rxe8 {[%emt 0:02:39]} Qxe8 {[%emt 0:00:02]} 27. Bxg7 {[%emt 0:00:05]} dxc5 {[%emt 0:03:11]} 28. Be5 {[%emt 0:00:27]} d4 {[%emt 0:05:31]} 29. Bxd4 {[%emt 0:05:45]} cxd4 {[%emt 0:02:59]} 30. Qxd4 {[%emt 0:00:19]} Qc6 {[%emt 0:00:27]} 31. Ne1 {[%emt 0:00:11]} Qh1+ {[%emt 0:03:04]} 32. Kf2 {[%emt 0:00:01]} Bc6 {[%emt 0:01:08]} 33. Ke2 {[%emt 0:00:37]} Qh2+ {[%emt 0:00:59]} 34. Qf2 {[%emt 0:00:06]} Bb5+ {[%emt 0:00:19]} 35. Ke3 {[%emt 0:00:02]} Qh3 {[%emt 0:00:08]} 36. Kd2 {[%emt 0:00:23]} Qf5 {[%emt 0:00:36]} 37. Qe3 {[%emt 0:00:42]} Qb1 {[%emt 0:00:37]} 38. Nc2 {[%emt 0:01:04]} Qb2 {[%emt 0:00:29]} 39. Qc3 {[%emt 0:00:06]} Qb1 {[%emt 0:00:32]} 40. Nd4 {[%emt 0:01:18]} Bd7 {[%emt 0:00:32]} 41. Qc7 {[%emt 0:31:45]} Bg4 {[%emt 0:30:24]} 42. Qc1 {[%emt 0:00:00]} Qe4 {[%emt 0:00:24]} 43. Qg1 {[%emt 0:00:00]} Kg7 {[%emt 0:00:52]} 44. Kc3 {[%emt 0:00:00]} Bc8 {[%emt 0:00:23]} 45. Kb2 {[%emt 0:00:28]} Bb7 {[%emt 0:00:24]} 46. Nc2 {[%emt 0:00:26]} f6 {[%emt 0:00:23]} 47. Qe3 {[%emt 0:00:14]} Qc6 {[%emt 0:01:02]} 48. Qe7+ {[%emt 0:00:29]} Kh6 {[%emt 0:00:19]} 49. Qf8+ {[%emt 0:00:30]} Kh7 {[%emt 0:00:03]} 50. Qf7+ {[%emt 0:00:06]} Kh6 {[%emt 0:00:36]} 51. Qg8 {[%emt 0:00:06]} Qd7 {[%emt 0:00:17]} 52. Qh8+ {[%emt 0:00:05]} Qh7 {[%emt 0:00:02]} 53. Qxf6 {[%emt 0:00:12]} 1-0

[Event "Moscow Open RSSU Cup 2020"]
[Site "Moscow"]
[Date "2020.01.29"]
[Round "5.6"]
[White "Arslanov, Shamil"]
[Black "Afanasiev, Nikita"]
[Result "1/2-1/2"]
[ECO "D34"]
[WhiteElo "2400"]
[BlackElo "2516"]
[Annotator "ChessBase"]
[PlyCount "82"]
[EventDate "2020.01.25"]
[EventType "swiss"]
[EventCountry "RUS"]
[SourceTitle "playchess.com"]
[Source "ChessBase"]
[SourceQuality "1"]
[TimeControl "40/5400+30:1800+30"]

1. Nf3 {[%emt 0:05:41]} Nf6 {[%emt 0:06:51]} 2. c4 {[%emt 0:00:15]} c5 {[%emt 0:01:57]} 3. b3 {[%emt 0:00:28]} e6 {[%emt 0:16:07]} 4. g3 {[%emt 0:01:59]} d5 {[%emt 0:00:37]} 5. cxd5 {[%emt 0:00:05]} exd5 {[%emt 0:00:05]} 6. Bg2 {[%emt 0:00:17]} Nc6 {[%emt 0:01:32]} 7. O-O {[%emt 0:00:12]} Bd6 {[%emt 0:05:40]} 8. d4 {[%emt 0:02:06]} O-O {[%emt 0:01:51]} 9. Bb2 {[%emt 0:02:47]} Re8 {[%emt 0:00:26]} 10. Nc3 {[%emt 0:00:55]} a6 {[%emt 0:06:54]} 11. Rc1 {[%emt 0:05:58]} Bg4 {[%emt 0:09:09]} 12. dxc5 {[%emt 0:13:14]} Bxc5 {[%emt 0:00:07]} 13. Nxd5 {[%emt 0:01:04]} Bxf2+ {[%emt 0:00:10]} 14. Rxf2 {[%emt 0:00:04]} Nxd5 {[%emt 0:01:16]} 15. Ne5 {[%emt 0:03:41]} Ne3 {[%emt 0:05:42]} 16. Qxd8 {[%emt 0:03:24]} Raxd8 {[%emt 0:01:00]} 17. Nxc6 {[%emt 0:05:39]} bxc6 {[%emt 0:03:31]} 18. Bxc6 {[%emt 0:01:54]} Re6 {[%emt 0:06:08]} 19. Rf4 {[%emt 0:06:40]} h5 {[%emt 0:02:57]} 20. Rd4 {[%emt 0:06:58]} Rxd4 {[%emt 0:12:12]} 21. Bxd4 {[%emt 0:00:05]} Nf5 {[%emt 0:00:05]} 22. e3 {[%emt 0:13:25]} Nxe3 {[%emt 0:00:05]} 23. Bd7 {[%emt 0:11:18]} Re4 {[%emt 0:01:31]} 24. Bxe3 {[%emt 0:01:26]} Bxd7 {[%emt 0:00:04]} 25. Kf2 {[%emt 0:00:10]} Re5 {[%emt 0:03:34]} 26. Rc4 {[%emt 0:00:15]} Rd5 {[%emt 0:00:08]} 27. Rd4 {[%emt 0:00:03]} Rxd4 {[%emt 0:00:13]} 28. Bxd4 {[%emt 0:00:03]} f6 {[%emt 0:00:04]} 29. Bc3 {[%emt 0:00:05]} Kf7 {[%emt 0:00:09]} 30. h4 {[%emt 0:00:05]} Ke6 {[%emt 0:00:11]} 31. Ke3 {[%emt 0:00:05]} Kf5 {[%emt 0:00:05]} 32. a3 {[%emt 0:00:15]} Kg4 {[%emt 0:00:06]} 33. Kf2 {[%emt 0:00:02]} Be6 {[%emt 0:00:12]} 34. b4 {[%emt 0:00:04]} Bb3 {[%emt 0:00:05]} 35. Bd4 {[%emt 0:00:03]} Ba4 {[%emt 0:00:04]} 36. Bc3 {[%emt 0:00:04]} Bb5 {[%emt 0:00:03]} 37. Bd4 {[%emt 0:00:04]} Bd7 {[%emt 0:00:03]} 38. Bc3 {[%emt 0:00:03]} Be8 {[%emt 0:00:06]} 39. Bd4 {[%emt 0:00:03]} Ba4 {[%emt 0:00:07]} 40. Bb2 {[%emt 0:00:03]} Bc2 {[%emt 0:00:04]} 41. Bc1 {[%emt 0:30:03]} g5 {[%emt 0:30:06]} 1/2-1/2

[Event "Moscow Open RSSU Cup 2020"]
[Site "Moscow"]
[Date "2020.01.29"]
[Round "5.7"]
[White "Tekeyev, Zaur"]
[Black "Lobanov, Sergei"]
[Result "1/2-1/2"]
[ECO "B51"]
[WhiteElo "2384"]
[BlackElo "2507"]
[Annotator "ChessBase"]
[PlyCount "115"]
[EventDate "2020.01.25"]
[EventType "swiss"]
[EventCountry "RUS"]
[SourceTitle "playchess.com"]
[Source "ChessBase"]
[SourceQuality "1"]
[TimeControl "40/5400+30:1800+30"]

1. e4 {[%emt 0:01:05]} c5 {[%emt 0:03:05]} 2. Nf3 {[%emt 0:00:11]} d6 {[%emt 0:00:04]} 3. Bb5+ {[%emt 0:00:11]} Nd7 {[%emt 0:00:08]} 4. a4 {[%emt 0:01:55]} Ngf6 {[%emt 0:00:11]} 5. Nc3 {[%emt 0:00:10]} g6 {[%emt 0:00:09]} 6. a5 {[%emt 0:01:26]} Bg7 {[%emt 0:00:15]} 7. O-O {[%emt 0:00:34]} O-O {[%emt 0:00:05]} 8. Re1 {[%emt 0:00:35]} a6 {[%emt 0:00:08]} 9. Bf1 {[%emt 0:00:42]} b5 {[%emt 0:00:19]} 10. axb6 {[%emt 0:00:05]} Qxb6 {[%emt 0:00:04]} 11. d3 {[%emt 0:19:44]} Bb7 {[%emt 0:00:11]} 12. h3 {[%emt 0:01:35]} Bc6 {[%emt 0:02:12]} 13. Ra3 {[%emt 0:08:52]} a5 {[%emt 0:03:25]} 14. Bd2 {[%emt 0:13:35]} h6 {[%emt 0:11:51]} 15. Qa1 {[%emt 0:02:47]} Qb7 {[%emt 0:14:24]} 16. d4 {[%emt 0:10:32]} cxd4 {[%emt 0:18:57]} 17. Nxd4 {[%emt 0:00:45]} Nc5 {[%emt 0:00:05]} 18. Nxc6 {[%emt 0:05:56]} Qxc6 {[%emt 0:00:02]} 19. f3 {[%emt 0:06:46]} Rfb8 {[%emt 0:01:26]} 20. Nd1 {[%emt 0:05:46]} a4 {[%emt 0:05:42]} 21. Bc3 {[%emt 0:00:52]} Nh5 {[%emt 0:04:25]} 22. Bxg7 {[%emt 0:00:54]} Nxg7 {[%emt 0:00:02]} 23. Bc4 {[%emt 0:00:55]} e6 {[%emt 0:05:14]} 24. Ne3 {[%emt 0:00:13]} h5 {[%emt 0:01:23]} 25. Kh1 {[%emt 0:00:38]} Rb4 {[%emt 0:05:34]} 26. b3 {[%emt 0:06:32]} Rab8 {[%emt 0:03:30]} 27. bxa4 {[%emt 0:00:30]} Rxa4 {[%emt 0:01:51]} 28. Rxa4 {[%emt 0:00:22]} Nxa4 {[%emt 0:00:16]} 29. Qd4 {[%emt 0:00:58]} Qc5 {[%emt 0:01:10]} 30. Qd2 {[%emt 0:00:43]} Qb4 {[%emt 0:02:29]} 31. Qf2 {[%emt 0:04:00]} Qc3 {[%emt 0:01:27]} 32. h4 {[%emt 0:02:15]} Rb4 {[%emt 0:01:29]} 33. Bf1 {[%emt 0:00:15]} Nc5 {[%emt 0:02:12]} 34. Rd1 {[%emt 0:00:20]} Ne8 {[%emt 0:00:10]} 35. g3 {[%emt 0:02:01]} Kg7 {[%emt 0:02:56]} 36. Kg2 {[%emt 0:00:22]} Kf8 {[%emt 0:01:52]} 37. Qd2 {[%emt 0:01:16]} Qxd2+ {[%emt 0:00:09]} 38. Rxd2 {[%emt 0:00:01]} Ke7 {[%emt 0:00:27]} 39. Kf2 {[%emt 0:01:25]} f5 {[%emt 0:00:31]} 40. exf5 {[%emt 0:00:01]} gxf5 {[%emt 0:00:01]} 41. Ng2 {[%emt 0:31:00]} Nf6 {[%emt 0:30:49]} 42. Nf4 {[%emt 0:01:41]} e5 {[%emt 0:01:11]} 43. Ng2 {[%emt 0:00:26]} Ne6 {[%emt 0:07:51]} 44. Ne3 {[%emt 0:00:15]} Ng7 {[%emt 0:00:05]} 45. Nc4 {[%emt 0:00:47]} Nfe8 {[%emt 0:00:36]} 46. Ne3 {[%emt 0:00:25]} Nc7 {[%emt 0:00:51]} 47. Nc4 {[%emt 0:00:15]} Nce8 {[%emt 0:01:00]} 48. Ne3 {[%emt 0:00:08]} Nc7 {[%emt 0:00:14]} 49. Nc4 {[%emt 0:00:05]} Nge8 {[%emt 0:00:19]} 50. Ne3 {[%emt 0:01:15]} Kf6 {[%emt 0:00:58]} 51. Rd1 {[%emt 0:00:54]} f4 {[%emt 0:00:29]} 52. gxf4 {[%emt 0:00:02]} Rxf4 {[%emt 0:00:01]} 53. Kg3 {[%emt 0:00:26]} Ra4 {[%emt 0:00:17]} 54. Bc4 {[%emt 0:00:37]} Ra5 {[%emt 0:00:23]} 55. Bb3 {[%emt 0:00:25]} Rc5 {[%emt 0:00:09]} 56. f4 {[%emt 0:00:55]} Rc3 {[%emt 0:01:33]} 57. fxe5+ {[%emt 0:00:24]} Kxe5 {[%emt 0:00:21]} 58. Kf2 {[%emt 0:00:29]} 1/2-1/2

[Event "Moscow Open RSSU Cup 2020"]
[Site "Moscow"]
[Date "2020.01.29"]
[Round "5.8"]
[White "Bykov, Egor"]
[Black "Matinian, Nikita"]
[Result "1-0"]
[ECO "E60"]
[WhiteElo "2384"]
[BlackElo "2496"]
[Annotator "ChessBase"]
[PlyCount "77"]
[EventDate "2020.01.25"]
[EventType "swiss"]
[EventCountry "RUS"]
[SourceTitle "playchess.com"]
[Source "ChessBase"]
[SourceQuality "1"]
[TimeControl "40/5400+30:1800+30"]

1. d4 {[%emt 0:00:00]} g6 {[%emt 0:00:00]} 2. Nf3 {[%emt 0:00:00]} Bg7 {[%emt 0:00:00]} 3. g3 {[%emt 0:00:41]} Nf6 {[%emt 0:00:07]} 4. Bg2 {[%emt 0:00:10]} O-O {[%emt 0:00:09]} 5. O-O {[%emt 0:00:07]} d6 {[%emt 0:00:12]} 6. b3 {[%emt 0:00:12]} c6 {[%emt 0:02:48]} 7. c4 {[%emt 0:02:14]} Bf5 {[%emt 0:05:19]} 8. Bb2 {[%emt 0:02:39]} a5 {[%emt 0:03:28]} 9. Nc3 {[%emt 0:04:29]} Qc8 {[%emt 0:11:20]} 10. Re1 {[%emt 0:02:31]} Ne4 {[%emt 0:03:20]} 11. Na4 {[%emt 0:11:37]} Ra6 {[%emt 0:02:12]} 12. Rc1 {[%emt 0:06:36]} Bh3 {[%emt 0:10:21]} 13. Qd3 {[%emt 0:08:17]} Bxg2 {[%emt 0:00:20]} 14. Qxe4 {[%emt 0:00:14]} Bxf3 {[%emt 0:01:45]} 15. Qxf3 {[%emt 0:00:42]} Nd7 {[%emt 0:01:07]} 16. e4 {[%emt 0:03:17]} c5 {[%emt 0:18:12]} 17. Qe3 {[%emt 0:18:04]} cxd4 {[%emt 0:06:41]} 18. Bxd4 {[%emt 0:00:07]} Ne5 {[%emt 0:00:26]} 19. Bxe5 {[%emt 0:07:42]} Bxe5 {[%emt 0:00:14]} 20. c5 {[%emt 0:00:23]} Qh3 {[%emt 0:09:12]} 21. f4 {[%emt 0:08:05]} Bg7 {[%emt 0:00:55]} 22. Nb6 {[%emt 0:04:39]} dxc5 {[%emt 0:01:32]} 23. Qxc5 {[%emt 0:00:18]} e5 {[%emt 0:03:33]} 24. fxe5 {[%emt 0:01:44]} h5 {[%emt 0:02:14]} 25. Rf1 {[%emt 0:08:17]} h4 {[%emt 0:01:23]} 26. Rf3 {[%emt 0:01:03]} hxg3 {[%emt 0:02:16]} 27. hxg3 {[%emt 0:00:35]} Qe6 {[%emt 0:06:10]} 28. Nd5 {[%emt 0:01:04]} Bxe5 {[%emt 0:00:17]} 29. Kg2 {[%emt 0:04:49]} Kg7 {[%emt 0:01:35]} 30. Rh1 {[%emt 0:02:49]} Rc6 {[%emt 0:00:12]} 31. Qf2 {[%emt 0:01:11]} Kg8 {[%emt 0:01:44]} 32. Rf1 {[%emt 0:00:33]} f6 {[%emt 0:04:35]} 33. Qd2 {[%emt 0:00:30]} Rfc8 {[%emt 0:01:10]} 34. Qh6 {[%emt 0:00:31]} Rc2+ {[%emt 0:00:04]} 35. Kh1 {[%emt 0:00:29]} g5 {[%emt 0:02:02]} 36. Qg6+ {[%emt 0:00:37]} Kh8 {[%emt 0:00:02]} 37. Qh6+ {[%emt 0:00:13]} Kg8 {[%emt 0:00:01]} 38. Rxf6 {[%emt 0:00:34]} Qd7 {[%emt 0:01:10]} 39. Rf8+ {[%emt 0:00:06]} 1-0

[Event "Moscow Open RSSU Cup 2020"]
[Site "Moscow"]
[Date "2020.01.29"]
[Round "5.9"]
[White "Pourramezanali, Amirreza"]
[Black "Suleymenov, Alisher"]
[Result "1/2-1/2"]
[ECO "B51"]
[WhiteElo "2488"]
[BlackElo "2382"]
[Annotator "ChessBase"]
[PlyCount "123"]
[EventDate "2020.01.25"]
[EventType "swiss"]
[EventCountry "RUS"]
[SourceTitle "playchess.com"]
[Source "ChessBase"]
[SourceQuality "1"]
[TimeControl "40/5400+30:1800+30"]

1. e4 {[%emt 0:00:00]} c5 {[%emt 0:00:00]} 2. Nf3 {[%emt 0:00:00]} d6 {[%emt 0:00:05]} 3. Bb5+ {[%emt 0:00:00]} Nc6 {[%emt 0:00:05]} 4. O-O {[%emt 0:00:15]} Bd7 {[%emt 0:00:05]} 5. Re1 {[%emt 0:00:43]} Nf6 {[%emt 0:00:05]} 6. c3 {[%emt 0:00:11]} a6 {[%emt 0:00:05]} 7. Bf1 {[%emt 0:00:14]} Bg4 {[%emt 0:00:05]} 8. h3 {[%emt 0:01:06]} Bxf3 {[%emt 0:00:04]} 9. Qxf3 {[%emt 0:00:05]} e6 {[%emt 0:00:12]} 10. d3 {[%emt 0:00:05]} Be7 {[%emt 0:00:37]} 11. Nd2 {[%emt 0:00:32]} O-O {[%emt 0:00:36]} 12. Qg3 {[%emt 0:00:04]} Rc8 {[%emt 0:14:27]} 13. Nf3 {[%emt 0:00:43]} Nh5 {[%emt 0:03:00]} 14. Qh2 {[%emt 0:00:05]} Nf6 {[%emt 0:11:06]} 15. Bd2 {[%emt 0:04:01]} b5 {[%emt 0:03:55]} 16. Rad1 {[%emt 0:14:21]} Qb6 {[%emt 0:09:45]} 17. a3 {[%emt 0:07:00]} a5 {[%emt 0:03:28]} 18. Bc1 {[%emt 0:27:59]} Rfd8 {[%emt 0:11:05]} 19. Qf4 {[%emt 0:11:51]} b4 {[%emt 0:02:11]} 20. axb4 {[%emt 0:10:39]} axb4 {[%emt 0:01:06]} 21. Bd2 {[%emt 0:01:37]} Nd7 {[%emt 0:07:22]} 22. Qg3 {[%emt 0:07:15]} Nde5 {[%emt 0:03:46]} 23. Nxe5 {[%emt 0:00:47]} dxe5 {[%emt 0:00:06]} 24. Ra1 {[%emt 0:01:27]} Rd7 {[%emt 0:08:39]} 25. Ra2 {[%emt 0:01:03]} Qd8 {[%emt 0:04:59]} 26. Bh6 {[%emt 0:01:03]} Bf6 {[%emt 0:01:59]} 27. Rea1 {[%emt 0:00:08]} Kh8 {[%emt 0:02:52]} 28. Be3 {[%emt 0:00:05]} Qe7 {[%emt 0:00:46]} 29. Qg4 {[%emt 0:01:36]} h6 {[%emt 0:01:06]} 30. g3 {[%emt 0:00:31]} Kh7 {[%emt 0:04:35]} 31. h4 {[%emt 0:00:10]} g6 {[%emt 0:00:04]} 32. Qe2 {[%emt 0:01:04]} Bg7 {[%emt 0:00:27]} 33. h5 {[%emt 0:02:53]} g5 {[%emt 0:00:01]} 34. Ra8 {[%emt 0:00:52]} Rdd8 {[%emt 0:01:55]} 35. Rxc8 {[%emt 0:01:06]} Rxc8 {[%emt 0:00:01]} 36. Qc2 {[%emt 0:00:13]} Bf8 {[%emt 0:04:03]} 37. Ra6 {[%emt 0:00:50]} Qb7 {[%emt 0:02:39]} 38. Qa4 {[%emt 0:00:02]} Rc7 {[%emt 0:00:29]} 39. Be2 {[%emt 0:02:46]} Kg7 {[%emt 0:00:09]} 40. Bd1 {[%emt 0:00:52]} bxc3 {[%emt 0:00:16]} 41. bxc3 {[%emt 0:30:01]} Qb1 {[%emt 0:30:34]} 42. Qc2 {[%emt 0:01:22]} Qb5 {[%emt 0:00:58]} 43. Ra1 {[%emt 0:00:01]} Rd7 {[%emt 0:00:50]} 44. Be2 {[%emt 0:02:07]} Qb6 {[%emt 0:00:24]} 45. Rb1 {[%emt 0:01:01]} Qa5 {[%emt 0:00:18]} 46. Rb3 {[%emt 0:00:12]} Rc7 {[%emt 0:00:57]} 47. Qb2 {[%emt 0:00:11]} Rd7 {[%emt 0:00:40]} 48. Rb5 {[%emt 0:01:39]} Qa7 {[%emt 0:00:12]} 49. Kg2 {[%emt 0:00:14]} Be7 {[%emt 0:00:18]} 50. Qb3 {[%emt 0:00:25]} Na5 {[%emt 0:00:59]} 51. Qa4 {[%emt 0:00:07]} Nc6 {[%emt 0:00:11]} 52. Qxa7 {[%emt 0:01:25]} Nxa7 {[%emt 0:00:00]} 53. Rb6 {[%emt 0:00:06]} Nc8 {[%emt 0:00:32]} 54. Ra6 {[%emt 0:00:02]} Rb7 {[%emt 0:00:38]} 55. Bd1 {[%emt 0:01:22]} Nb6 {[%emt 0:00:42]} 56. c4 {[%emt 0:00:46]} Nd7 {[%emt 0:00:22]} 57. Ba4 {[%emt 0:00:08]} Nf6 {[%emt 0:00:10]} 58. Rc6 {[%emt 0:00:52]} Ng4 {[%emt 0:01:09]} 59. Kf3 {[%emt 0:00:41]} Nh2+ {[%emt 0:00:40]} 60. Kg2 {[%emt 0:00:15]} Ng4 {[%emt 0:00:01]} 61. Kf3 {[%emt 0:00:04]} Nh2+ {[%emt 0:00:52]} 62. Kg2 {[%emt 0:01:27]} 1/2-1/2

[Event "Moscow Open RSSU Cup 2020"]
[Site "Moscow"]
[Date "2020.01.29"]
[Round "5.12"]
[White "Khegay, Dmitriy"]
[Black "Shinkevich, Vitaly"]
[Result "1/2-1/2"]
[ECO "C92"]
[WhiteElo "2533"]
[BlackElo "2442"]
[Annotator "ChessBase"]
[PlyCount "95"]
[EventDate "2020.01.25"]
[EventType "swiss"]
[EventCountry "RUS"]
[SourceTitle "playchess.com"]
[Source "ChessBase"]
[SourceQuality "1"]
[TimeControl "40/5400+30:1800+30"]

1. e4 {[%emt 0:00:00]} e5 {[%emt 0:00:45]} 2. Nf3 {[%emt 0:00:00]} Nc6 {[%emt 0:00:04]} 3. Bb5 {[%emt 0:00:00]} a6 {[%emt 0:01:01]} 4. Ba4 {[%emt 0:00:00]} Nf6 {[%emt 0:00:53]} 5. O-O {[%emt 0:00:00]} Be7 {[%emt 0:01:01]} 6. Re1 {[%emt 0:00:00]} b5 {[%emt 0:00:10]} 7. Bb3 {[%emt 0:00:04]} d6 {[%emt 0:00:29]} 8. c3 {[%emt 0:00:05]} O-O {[%emt 0:00:05]} 9. h3 {[%emt 0:00:03]} Nd7 {[%emt 0:01:17]} 10. d4 {[%emt 0:01:31]} Bf6 {[%emt 0:02:30]} 11. d5 {[%emt 0:05:24]} Ne7 {[%emt 0:01:48]} 12. a4 {[%emt 0:01:17]} Bb7 {[%emt 0:00:42]} 13. Na3 {[%emt 0:04:14]} Nc5 {[%emt 0:07:11]} 14. Bc2 {[%emt 0:00:26]} c6 {[%emt 0:01:14]} 15. b4 {[%emt 0:15:32]} Nxa4 {[%emt 0:04:18]} 16. Bxa4 {[%emt 0:04:19]} bxa4 {[%emt 0:00:03]} 17. c4 {[%emt 0:00:04]} cxd5 {[%emt 0:03:10]} 18. cxd5 {[%emt 0:00:04]} Rc8 {[%emt 0:00:32]} 19. Be3 {[%emt 0:02:26]} Ng6 {[%emt 0:00:42]} 20. Qxa4 {[%emt 0:01:21]} Nh4 {[%emt 0:00:38]} 21. Nxh4 {[%emt 0:10:19]} Bxh4 {[%emt 0:00:46]} 22. b5 {[%emt 0:00:12]} Qd7 {[%emt 0:04:34]} 23. Qb4 {[%emt 0:00:52]} a5 {[%emt 0:01:57]} 24. Qa4 {[%emt 0:13:11]} f5 {[%emt 0:00:40]} 25. exf5 {[%emt 0:00:07]} Bd8 {[%emt 0:00:12]} 26. Qe4 {[%emt 0:02:13]} Qxf5 {[%emt 0:04:44]} 27. Qxf5 {[%emt 0:12:48]} Rxf5 {[%emt 0:00:25]} 28. b6 {[%emt 0:01:15]} Bxd5 {[%emt 0:14:22]} 29. Nb5 {[%emt 0:00:10]} Rb8 {[%emt 0:10:04]} 30. Red1 {[%emt 0:10:26]} Bb3 {[%emt 0:01:26]} 31. Rxd6 {[%emt 0:00:07]} Rf6 {[%emt 0:03:15]} 32. Rxa5 {[%emt 0:05:57]} Bxb6 {[%emt 0:00:50]} 33. Bxb6 {[%emt 0:00:04]} Rxb6 {[%emt 0:00:22]} 34. Rxb6 {[%emt 0:00:11]} Rxb6 {[%emt 0:00:05]} 35. Nc3 {[%emt 0:00:11]} Re6 {[%emt 0:02:43]} 36. Ne4 {[%emt 0:00:06]} Re7 {[%emt 0:03:53]} 37. Ng5 {[%emt 0:00:42]} g6 {[%emt 0:00:51]} 38. Nf3 {[%emt 0:02:34]} e4 {[%emt 0:00:32]} 39. Ne5 {[%emt 0:00:02]} Kg7 {[%emt 0:02:24]} 40. Ng4 {[%emt 0:00:06]} Bf7 {[%emt 0:02:24]} 41. Ne3 {[%emt 0:30:07]} h5 {[%emt 0:35:30]} 42. g3 {[%emt 0:00:44]} Kf6 {[%emt 0:01:31]} 43. Kg2 {[%emt 0:00:13]} Be6 {[%emt 0:00:52]} 44. g4 {[%emt 0:00:17]} hxg4 {[%emt 0:00:54]} 45. hxg4 {[%emt 0:00:04]} g5 {[%emt 0:00:30]} 46. Kg3 {[%emt 0:00:52]} Rd7 {[%emt 0:00:40]} 47. Ra4 {[%emt 0:00:14]} Ke5 {[%emt 0:00:17]} 48. Ra5+ {[%emt 0:00:10]} 1/2-1/2

[Event "Moscow Open RSSU Cup 2020"]
[Site "Moscow"]
[Date "2020.01.29"]
[Round "5.13"]
[White "Nasyrova, Ekaterina"]
[Black "Osmak, Iulija"]
[Result "0-1"]
[ECO "A14"]
[WhiteElo "2208"]
[BlackElo "2394"]
[Annotator "NA"]
[PlyCount "74"]
[EventDate "2020.01.25"]
[EventType "swiss"]
[EventCountry "RUS"]
[SourceTitle "playchess.com"]
[Source "ChessBase"]
[SourceQuality "1"]
[TimeControl "40/5400+30:1800+30"]

1. Nf3 {[%emt 0:00:00]} Nf6 {[%emt 0:00:00]} 2. c4 {[%emt 0:00:00]} e6 {[%emt 0:00:00]} 3. e3 {[%emt 0:00:00]} b6 {[%emt 0:00:05]} 4. b3 {[%emt 0:00:31]} Bb7 {[%emt 0:01:25]} 5. Bb2 {[%emt 0:01:27]} Be7 {[%emt 0:00:46]} 6. g3 {[%emt 0:02:08]} d5 {[%emt 0:02:11]} 7. Bg2 {[%emt 0:01:05]} O-O {[%emt 0:03:32]} 8. O-O {[%emt 0:01:28]} c5 {[%emt 0:05:44]} 9. Nc3 {[%emt 0:01:18]} dxc4 {[%emt 0:04:16]} 10. bxc4 {[%emt 0:00:49]} Nc6 {[%emt 0:00:06]} 11. Qe2 {[%emt 0:00:47]} Rc8 {[%emt 0:01:33]} 12. Rad1 {[%emt 0:02:12]} Qc7 {[%emt 0:11:02]} 13. Ne1 {[%emt 0:03:25]} Rfd8 {[%emt 0:07:31]} 14. f4 {[%emt 0:01:36]} a6 $11 {[%emt 0:03:29]} 15. g4 {[%emt 0:04:35]} Ne8 {[%emt 0:03:34]} 16. g5 {[%emt 0:08:19]} Na5 {[%emt 0:05:31]} 17. Ne4 {[%emt 0:07:24]} Nd6 {[%emt 0:07:15]} 18. Nxd6 {[%emt 0:08:42]} Bxd6 {[%emt 0:00:54]} 19. Bxb7 {[%emt 0:02:52]} Qxb7 {[%emt 0:00:17]} 20. Bc3 {[%emt 0:00:30]} Nc6 {[%emt 0:06:06]} 21. Qh5 {[%emt 0:07:34]} Ne7 {[%emt 0:00:39]} 22. Rf3 {[%emt 0:01:08]} Ng6 {[%emt 0:07:50]} 23. Rh3 {[%emt 0:05:45]} Nf8 {[%emt 0:01:01]} 24. Nd3 {[%emt 0:00:32]} Qe4 {[%emt 0:04:07]} 25. Nf2 {[%emt 0:00:34]} Qg6 {[%emt 0:02:10]} 26. Qg4 {[%emt 0:07:46]} Be7 {[%emt 0:01:27]} 27. Qg2 {[%emt 0:08:35]} f5 {[%emt 0:02:27]} 28. Rb1 {[%emt 0:07:28]} Rb8 {[%emt 0:01:25]} 29. Be5 {[%emt 0:00:39]} Bd6 {[%emt 0:00:32]} 30. Nd3 {[%emt 0:04:01]} Qe8 {[%emt 0:00:15]} 31. Qe2 {[%emt 0:01:02]} Qa4 {[%emt 0:04:13]} 32. Bxd6 {[%emt 0:10:59]} Rxd6 {[%emt 0:01:20]} 33. Rc1 {[%emt 0:00:34]} Qxa2 {[%emt 0:04:14]} 34. e4 {[%emt 0:00:29]} fxe4 {[%emt 0:01:25]} 35. Qxe4 {[%emt 0:00:10]} Qxd2 {[%emt 0:00:09]} 36. Re1 {[%emt 0:00:53]} Rd4 {[%emt 0:01:28]} 37. Qe3 {[%emt 0:00:33]} Rxd3 {[%emt 0:00:31]} 0-1